Cogmind - Beta 13 X2 @@@ ROGUE MODE // 2024.01.12 @ 17:11:04 Player: Minty Result: Destroyed by V3-XQT(R) with Subdweller Machine Gun Performance ------------- Evolutions (0) 0 Regions Visited (3) 600 Robots Destroyed (10) 50 Value Destroyed (178) 178 Prototype IDs (0) 0 Alien Tech Used (0) 0 Bonus (0) 0 TOTAL SCORE: 828 Bonus ------- None Cogmind --------- Core Integrity 0/250 Matter 300/300 Energy 250/250 System Corruption 0% Temperature Cool (0) Movement Rolling (110) Location -10/Subcaves Parts ------- > --- POWER (1) -------- Ion Engine > --- PROPULSION (2) --- Subdweller Monowheel Subdweller Monowheel > --- UTILITY (2) ------ Small Storage Unit > --- WEAPON (2) ------- Subdweller Laser > --- INVENTORY (8) ---- Aluminum Leg Aluminum Leg Disposable Heat Sink Improved Terrain Scanner Seismic Detector Small Laser Peak State ------------ > --- POWER ------------ Ion Engine > --- PROPULSION ------- Subdweller Monowheel Subdweller Monowheel > --- UTILITY ---------- Small Storage Unit > --- WEAPON ----------- Subdweller Laser Subdweller Laser > --- INVENTORY -------- Aluminum Leg Aluminum Leg Disposable Heat Sink Improved Terrain Scanner Seismic Detector Small Laser [Rating: 10] Favorites ----------- Power Light Ion Engine Engine Light Ion Engine Propulsion Aluminum Leg Leg Aluminum Leg Wheel Subdweller Monowheel Utility Small Storage Unit Device Improved Terrain Scanner Storage Small Storage Unit Weapon Small Laser Energy Gun Small Laser Special Weapon Mining Laser Build | -11 -10 -10 -10 ------- Run | Yrd Mat Min Sub Slots Evolved . | . . . . Power . | . . . . Propulsion . | . . . . Utility . | . . . . Weapon . | . . . . Parts Attached 12 | 1 . 3 8 Power 1 | . . . 1 Engine 1 | . . . 1 Core . | . . . . Reactor . | . . . . Propulsion 2 | . . . 2 Treads . | . . . . Leg . | . . . . Wheel 2 | . . . 2 Hover . | . . . . Flight . | . . . . Utility 1 | 1 . . . Device 1 | 1 . . . Storage . | . . . . Processor . | . . . . Hackware . | . . . . Protection . | . . . . Artifact . | . . . . Weapon 8 | . . 3 5 Energy Gun 6 | . . 2 4 Energy Cannon . | . . . . Ballistic Gun . | . . . . Ballistic Cannon . | . . . . Launcher . | . . . . Special Weapon 2 | . . 1 1 Impact Weapon . | . . . . Slashing Weapon . | . . . . Piercing Weapon . | . . . . Special Melee Weapon . | . . . . Unidentified Prototypes . | . . . . Parts Lost 6 | . . . 6 Power 1 | . . . 1 Propulsion . | . . . . Utility 1 | . . . 1 Weapon 4 | . . . 4 Highest Loss Streak 5 | . . . 5 To Critical Strikes . | . . . . Average Slot Usage (%) 93 | . 100 100 78 Engine 13 | . 14 14 12 Leg 25 | . 28 28 20 Wheel 2 | . . . 7 Device 11 | . 14 14 3 Storage 14 | . 14 14 14 Energy Gun 24 | . 28 26 17 Special Weapon 1 | . . 1 1 Naked Turns . | . . . . Heaviest Build 18 | 12 12 13 18 Greatest Support 40 | 20 20 20 40 Greatest Overweight (x) . | . . . . Average Overweight (x) . | . . . . Largest Inventory Capacity 8 | 8 8 8 8 Average Capacity 8 | 8 8 8 8 Most Carried 7 | 7 5 5 6 Average Carried 4 | 5 5 5 4 Final Capacity 8 | 8 8 8 8 Final Carried 6 | 5 5 5 6 Class Distribution -------------------- 100% | Mutant Dominant Class ---------------- Mutant | -10/Materials Mutant | -10/Mines Mutant | -10/Subcaves Resources | -11 -10 -10 -10 ----------- Run | Yrd Mat Min Sub Matter Collected 284 | 210 . 7 67 Remotely . | . . . . Salvage Created 311 | 181 . 7 123 Parts 26 | 16 . 1 9 Haulers Intercepted . | . . . . Recyclers Shooed . | . . . . Parts Field Recycled . | . . . . Retrieved Matter . | . . . . Parts Self-Destructed . | . . . . Prevented . | . . . . Kills | -11 -10 -10 -10 ------- Run | Yrd Mat Min Sub Combat Hostiles Destroyed 3 | . . . 3 Guns 2 | . . . 2 Cannons 1 | . . . 1 Classes Destroyed 3 | 2 . . 1 Tunneler 6 | 5 . 1 . Recycler 1 | 1 . . . Subdweller 3 | . . . 3 Best Kill Streak 2 | 2 . 1 2 Combat Bots Only 2 | . . . 2 Max Kills in Single Turn 1 | 1 . 1 1 Gunslinging . | . . . . Exploded . | . . . . Melee . | . . . . Uniques/NPCs Destroyed . | . . . . Combat | -11 -10 -10 -10 -------- Run | Yrd Mat Min Sub Hostile Shots Fired 46 | . 14 . 32 Missed 10 | . 4 . 6 Damage Taken 799 | 18 111 . 670 Core 250 | . 33 . 217 Absorbed by Shields . | . . . . Core Remaining (%) 100 | 100 . . . Volleys Fired 34 | 9 2 3 20 Largest 2 | 2 2 2 2 Hottest 140 | 80 80 140 140 Shots Fired 56 | 18 4 6 28 Gun 52 | 18 4 3 27 Cannon . | . . . . Launcher . | . . . . Special 4 | . . 3 1 Kinetic . | . . . . Thermal 37 | 9 2 6 20 Explosive . | . . . . Electromagnetic 19 | 9 2 . 8 Robot Hit Streak 13 | 4 3 5 13 Robot Miss Streak 2 | 1 2 . 1 Penetration Max . | . . . . Secondary Targets . | . . . . Shots Hit Robots 42 | 13 3 2 24 Core Hits 19 | 7 2 1 9 Critical Kills . | . . . . Critical Parts Destroyed . | . . . . Critical Strikes . | . . . . Melee Attacks . | . . . . Impact . | . . . . Slashing . | . . . . Piercing . | . . . . Sneak Attacks . | . . . . Combat Hostiles . | . . . . Follow-up Attacks . | . . . . Damage Inflicted 663 | 240 81 35 307 Guns 471 | 144 36 11 280 Cannons . | . . . . Explosions 141 | 96 45 . . Melee . | . . . . Ramming 3 | . . . 3 Kinetic . | . . . . Thermal 503 | 159 68 35 241 Explosive . | . . . . Electromagnetic 157 | 81 13 . 63 Impact . | . . . . Slashing . | . . . . Piercing . | . . . . Highest Corruption . | . . . . Average Corruption . | . . . . Corruption Purged . | . . . . Corruption Blocked . | . . . . Overload Shots . | . . . . Overflow Damage 12 | 12 . . . Projectiles . | . . . . Explosions 12 | 12 . . . Melee . | . . . . Knockbacks . | . . . . Impact . | . . . . Kinetic . | . . . . Secondary . | . . . . Self-Inflicted Damage 18 | 18 . . . Shots 1 | 1 . . . Rammed . | . . . . Targets Rammed 2 | . . . 2 Kicked 2 | . . . 2 Crushed . | . . . . Highest Temperature 84 | 48 36 84 . Average Temperature 28 | 22 15 43 . Received Heat Transfer 162 | . 60 . 102 Siege Activations . | . . . . Robots Corrupted . | . . . . Combat Hostiles . | . . . . Parts Fried . | . . . . Impact Corruptions . | . . . . Robots Melted . | . . . . Combat Hostiles . | . . . . Parts Melted 1 | 1 . . . Heat Transferred 1025 | 350 150 75 450 Parts Sabotaged . | . . . . Parts Stolen . | . . . . Parts Stripped . | . . . . Power Chain Reactions 2 | 1 1 . . Missiles Intercepted . | . . . . Alert | -11 -10 -10 -10 ------- Run | Yrd Mat Min Sub Peak Influence 67 | 30 67 30 . Initial 25 | . 19 25 . Average 27 | 17 44 25 . Maximum Alert Level . | . . . . Low Security (%) 100 | 100 100 100 . Level 1 . | . . . . Level 2 . | . . . . Level 3 . | . . . . Level 4 . | . . . . Level 5 . | . . . . High Security . | . . . . Max Security . | . . . . Squads Dispatched 3 | . 3 . . Investigation 3 | . 3 . . Extermination . | . . . . Reinforcement . | . . . . Assault . | . . . . Garrison . | . . . . Intercept . | . . . . Searches Triggered . | . . . . Construction Impeded . | . . . . Haulers Reinforced . | . . . . Active Scanning Responses . | . . . . Cargo Convoy Interrupts . | . . . . Stealth | -11 -10 -10 -10 --------- Run | Yrd Mat Min Sub Distress Signals . | . . . . Communications Jammed . | . . . . Distress Signals . | . . . . Times Spotted 11 | . 5 . 6 Peak Tracking Total 3 | . 3 . 3 Tactical Retreats . | . . . . Traps | -11 -10 -10 -10 ------- Run | Yrd Mat Min Sub Traps Triggered . | . . . . Indirectly . | . . . . Trap Hack Attempts . | . . . . Triggered . | . . . . Disarmed 3 | . 3 . . Reprogrammed . | . . . . Reused . | . . . . Traps Extracted . | . . . . Installed . | . . . . Triggered . | . . . . Machines | -11 -10 -10 -10 ---------- Run | Yrd Mat Min Sub Machines Disabled 1 | . 1 . . Max in Single Turn 1 | . 1 . . Machines Repaired . | . . . . Machines Dismantled . | . . . . Machines Sabotaged . | . . . . Overloaded Fab Kills . | . . . . Hacking | -11 -10 -10 -10 --------- Run | Yrd Mat Min Sub Machines Accessed 5 | . 5 . . Terminals 5 | . 5 . . Fabricators . | . . . . Repair Stations . | . . . . Recycling Units . | . . . . Scanalyzers . | . . . . Garrison Access . | . . . . Total Hacks 13 | . 13 . . Successful 6 | . 6 . . Failed 7 | . 7 . . Catastrophic 3 | . 3 . . Database Lockouts . | . . . . Manual 3 | . 3 . . Terminals 13 | . 13 . . Fabricators . | . . . . Repair Stations . | . . . . Recycling Units . | . . . . Scanalyzers . | . . . . Garrison Access . | . . . . Terminal Hacks 6 | . 6 . . Robot Analysis 1 | . 1 . . Branch Access Points 1 | . 1 . . Terminal Index 1 | . 1 . . Locate Traps 2 | . 2 . . Disarm Traps 1 | . 1 . . Fabricator Hacks . | . . . . Repair Station Hacks . | . . . . Recycling Unit Hacks . | . . . . Scanalyzer . | . . . . Garrison Access Hacks . | . . . . Unauthorized Hacks . | . . . . Terminals . | . . . . Fabricators . | . . . . Repair Stations . | . . . . Recycling Units . | . . . . Scanalyzers . | . . . . Garrison Access . | . . . . Data Cores Recovered . | . . . . Used . | . . . . Hacking Detections 5 | . 5 . . Full Trace Events 3 | . 3 . . Feedback Events . | . . . . Feedback Blocked . | . . . . Robot Schematics Acquired . | . . . . Robots Built . | . . . . Authchips . | . . . . Time . | . . . . Total Robot Build Rating . | . . . . Part Schematics Acquired . | . . . . Parts Built . | . . . . Authchips . | . . . . Time . | . . . . Total Part Build Rating . | . . . . Parts Repaired . | . . . . Time . | . . . . Parts Recycled . | . . . . Recycled Matter . | . . . . Retrieved Matter . | . . . . Retrieved Components . | . . . . Parts Scanalyzed . | . . . . Part Schematics Acquired . | . . . . Parts Damaged . | . . . . Bothacking | -11 -10 -10 -10 ------------ Run | Yrd Mat Min Sub Used RIF Installer . | . . . . Robots Hacked . | . . . . Non-combat . | . . . . Combat . | . . . . Robot Hacks Applied . | . . . . Relay Couplers Released . | . . . . Fabnet Peak Effective % . | . . . . Robots Rewired . | . . . . Allies Hacked . | . . . . Hacks Repelled . | . . . . Allies | -11 -10 -10 -10 -------- Run | Yrd Mat Min Sub Total Allies . | . . . . Largest Group . | . . . . Highest-Rated Group . | . . . . Highest-Rated Ally . | . . . . Total Orders . | . . . . Ally Attacks . | . . . . Total Damage . | . . . . Kills . | . . . . Allies Corrupted . | . . . . Allies Melted . | . . . . Intel | -11 -10 -10 -10 ------- Run | Yrd Mat Min Sub Robot Analysis Total 1 | . 1 . . Derelict Logs Recovered . | . . . . Drone Launches . | . . . . Drone Recoveries . | . . . . Exploration | -11 -10 -10 -10 ------------- Run | Yrd Mat Min Sub Turns Passed 490 | 118 98 163 111 Spaces Moved 201 | 71 77 13 40 Core . | . . . . Treads . | . . . . Legs 182 | 71 77 13 21 Wheels 19 | . . . 19 Hover . | . . . . Flight . | . . . . Fastest Speed 110 | 120 120 120 110 Average Speed 119 | 120 120 120 115 Slowest Speed 120 | 120 120 120 120 Overloaded Moves . | . . . . Propulsion Burnouts . | . . . . Robots Hopped . | . . . . Cave-ins Triggered . | . . . . Exploration Rate (%) 8 | 4 22 4 4 Regions Visited 3 Branch Regions 2 Pre-discovered Areas . | . . . . Known Exits Taken 1 | . 1 . . Unknown Exits Taken 2 | 1 . 1 . Scrap Searched . | . . . . Spaces Dug . | . . . . Terrain Destroyed 4 | 1 3 . . Melee . | . . . . Projectile . | . . . . AOE 4 | 1 3 . . Terrain Rammed . | . . . . Walls Destroyed . | . . . . Machines Disabled . | . . . . Actions | -11 -10 -10 -10 --------- Run | Yrd Mat Min Sub Total 385 | 87 78 147 73 Wait 129 | . . 129 . Move 198 | 70 76 12 40 Hop . | . . . . Pick Up 4 | 3 . . 1 Fast Attach 4 | 1 . . 3 Attach 3 | . . . 3 Detach 2 | . . . 2 Swap 5 | . . 3 2 Drop 4 | 4 . . . Fire 34 | 9 2 3 20 Melee . | . . . . Ram . | . . . . Kick 2 | . . . 2 Crush . | . . . . Escape Stasis . | . . . . Rewire . | . . . . Trap . | . . . . Miscellaneous . | . . . . Route ------- -11/Scrapyard -10/Materials -10/Mines -10/Subcaves History --------- Turn | Location | Event 1 | -11/Scrapyard | Discovered new exit (range 2) 119 | -11/Scrapyard | Entered Materials 131 | -10/Materials | Identified exit to Mines 217 | -10/Materials | Entered Mines 231 | -10/Mines | Met a Derelict bent on vengeance 310 | -10/Mines | Build established: Mutant 375 | -10/Mines | Discovered new exit (range 3) 380 | -10/Mines | Entered Subcaves 426 | -10/Subcaves | Core integrity fell below 50% 444 | -10/Subcaves | Core integrity fell below 20% 448 | -10/Subcaves | Lost 5 parts (1p1u3w) 491 | -10/Subcaves | Destroyed by V3-XQT(R) with Subdweller Machine Gun Last Messages --------------- 00405_ D2-O7I(R) misfires. 00408_ D2-O7I(R) destroyed. 00411_ Imp. Terrain Scanner destroyed. 00417_ Mining Laser destroyed. 00423_ 3X-Y7W(R) misfires. 00425_ Kicked 3X-Y7W(R). 00426_ Kicked 3X-Y7W(R) out of the way. 00429_ 3X-Y7W(R) misfires. 00430_ Acquired Disposable Heat Sink. 00444_ 3X-Y7W(R) destroyed. 00447_ Acquired Sub. Laser. 00450_ Acquired 32 matter. 00451_ XU-1A4(R) destroyed. 00458_ Acquired 20 matter. 00461_ Acquired Sub. Monowheel. 00463_ Acquired 10 matter. 00465_ Acquired Sub. Monowheel. 00472_ Sub. Laser destroyed. 00472_ VL-KA2(R) destroyed. 00476_ Acquired 5 matter. Map ----- +----------------------------------------------------+ | ?????????????????????????????????????????????????? | | ?????????????????????????????????????????????????? | | ?????????????????????????????????????????????????? | | ?????????????????????????????????????????????????? | | ?????????????????????????????????????????????????? | | ?????????????????????????????????????????????????? | | ?????????????????????????????????????????????????? | | ?????????????????????????????????????????????????? | | ?????????????????????????????????????????????????? | | ?????????????????????????????????????????????????? | | ?????????????????????????????????????????????????? | | ?????????????????????????????????????????????????? | | ?????????????????????????????????????????????????? | | ?????????????????????????????????????????????????? | | ?????????????????????????????????????????????????? | | ?????????????????????????????????????????????????? | | ?????????????????????????????????????????????????? | | ?????????????????????????????????????????????????? | | ?????????????????????????????????????????????????? | | ?????????????????????????????????????????????????? | | ?????????????????????????????????????????????????? | | ?????????????????????????????????????????????????? | | ???????????????#####?????????????????????????????? | | ???????????????# ##???????##???????????????????? | | #?????????###???# ##?#### ##??????????????????? | | ????####### ###?# ### @ #??????????????????? | | ????# #" ### # #??????????????????? | | ##### "" #### ???????????????? | | " # # ! #??? RR #????????????? | | " " ! #???? # #????????????? | | #"##"% % #????? ##??##????????????? | | ###" & * #????? #?????????????????? | | """" #?????????????????? | | " # ?????????????????? | | #### " ## ##? ????????????????? | | ##??########### ## ### #??? ???????????????? | | #???#?????????## ### ## #??###??? ???????????????? | | ???????????????###?# #?##????????? ??????????????? | | ??????????????????? #???????????????????????????? | | ??????????????????? ##???????????????????????????? | | ???????????????????#?????????????????????????????? | | ?????????????????????????????????????????????????? | | ?????????????????????????????????????????????????? | | ?????????????????????????????????????????????????? | | ?????????????????????????????????????????????????? | | ?????????????????????????????????????????????????? | | ?????????????????????????????????????????????????? | | ?????????????????????????????????????????????????? | | ?????????????????????????????????????????????????? | | ?????????????????????????????????????????????????? | +----------------------------------------------------+ Best States ------------- Heat Dissipation 25 Energy Generation 10 Energy Capacity 250 Matter Stores 300 Matter Capacity 300 Sight Range 16 Terrain Scan Range 16 Terrain Scan Density 10 Evasion (%) 55 Item Schematics ----------------- None Robot Schematics ------------------ None Fabricated ------------ Nothing Alien Tech Used ----------------- None Achievements -------------- None Challenges ------------ None Game ------ Seed CloakingContainmentRefractor Manual? 0 Play Time 00:04:43 Cumulative 584.7 hours Start 2024.01.12 @ 17:07:16 End 2024.01.12 @ 17:11:04 Sessions 1 Manual Loads 0 Difficulty Rogue Special Mode None Game No. 502 Rogue 229 Adventurer 123 Explorer 150 Win Type - Total 25 Types 19/0/4/1/0/0/0/1/0 Lore% 78 Gallery% 90 Achievement% 75 Wizard Run 0 Options --------- ASCII 0 Keyboard 1 Movement Numpad Keybinds 0 Fullscreen 2 Font 18/X11Bold Map View 38x25 Zoom Use 20% Tactical HUD 1 Map Filters NONE Filters NONE Steam 1 RUN: 9bef97d9-bc4f-4a3d-b8d1-e9d216a6ece5